lending/lending_fUSD_20240621
["ID","MTS","AMOUNT","RATE_DAILY","PERIOD"]
[330087781,1718989891328,-500.0,0.00024657,2]
[330087782,1718989891337,-500.0,0.00024657,4]
[330087783,1718989891347,-522.35,0.00024657,4]
[330087784,1718989891356,-985.93,0.00024657,4]
[330087785,1718989891366,-500.0,0.00024657,4]
[330087786,1718989891375,-668.33,0.00024657,4]
[330087787,1718989891384,-548.21,0.00024657,4]
[330087788,1718989891393,-679.56,0.00024657,4]
[330087789,1718989891403,-500.0,0.00024657,4]
[330087790,1718989891412,-500.0,0.00024657,4]
[330087791,1718989891422,-500.0,0.00024657,4]
[330087792,1718989891432,-780.77,0.00024657,4]
[330087793,1718989891442,-582.75,0.00024657,4]
[330087794,1718989891451,-500.0,0.00024657,4]
[330087795,1718989891460,-500.0,0.00024657,4]
[330087796,1718989891470,-584.71,0.00024657,4]
[330087797,1718989891479,-563.5,0.00024657,4]
[330087798,1718989891489,-1042.2,0.00024657,4]
[330087799,1718989891498,-500.0,0.00024657,4]
[330087800,1718989891508,-588.19,0.00024657,4]
[330087801,1718989891517,-687.44,0.00024657,4]
[330087802,1718989891526,-811.36,0.00024657,4]
[330087803,1718989891536,-717.66,0.00024657,4]
[330087804,1718989891545,-621.56,0.00024657,4]
[330087805,1718989891554,-531.24,0.00024657,4]
[330087806,1718989891563,-500.0,0.00024657,4]
[330087807,1718989891573,-1201.37,0.00024657,4]
[330087808,1718989891582,-500.0,0.00024657,4]
[330087809,1718989891591,-522.9,0.00024657,4]
[330087810,1718989891600,-742.2,0.00024657,4]
[330087811,1718989891610,-500.0,0.00024657,4]
[330087812,1718989891620,-500.0,0.00024657,4]
[330087813,1718989891629,-1192.22,0.00024657,4]
[330087814,1718989891639,-500.0,0.00024657,4]
[330087815,1718989891649,-500.0,0.00024657,4]
[330087816,1718989892034,-938.16,0.00024657,4]
[330087817,1718989892045,-500.0,0.00024657,4]
[330087818,1718989892054,-1372.38,0.00024657,4]
[330087819,1718989892064,-500.0,0.00024657,4]
[330087820,1718989892073,-624.64,0.00024657,4]
[330087821,1718989892082,-1457.99,0.00024657,4]
[330087822,1718989892093,-500.0,0.00024657,4]
[330087823,1718989892108,-511.55,0.00024657,4]
[330087824,1718989892118,-500.0,0.00024657,4]
[330087825,1718989892127,-595.44,0.00024657,4]
[330087826,1718989892139,-500.0,0.00024657,4]
[330087827,1718989892148,-963.23,0.00024657,4]
[330087828,1718989892157,-622.489192,0.00024657,4]
[330087829,1718989892169,-759.23,0.00024657,4]
[330087830,1718989892179,-1020.76,0.00024657,4]
[330087831,1718989892189,-506.67988911,0.00024657,4]
[330087832,1718989892199,-500.0,0.00024657,4]
[330087833,1718989892209,-1064.78,0.00024657,4]
[330087834,1718989892219,-873.22,0.00024657,4]
[330087835,1718989892228,-264.7041524,0.00024657,4]
[330087836,1718989892238,-733.93,0.00024657,4]
[330087837,1718989892248,-500.0,0.00024657,4]
[330087838,1718989892258,-2686.69,0.00024657,4]
[330087839,1718989892268,-1011.28,0.00024657,4]
[330087840,1718989892277,-852.94,0.00024657,4]
[330087841,1718989892287,-554.48,0.00024657,4]
[330087842,1718989892296,-500.0,0.00024657,4]
[330087843,1718989892306,-286.78,0.00024657,4]
[330087844,1718989892316,-500.0,0.00024657,4]
[330087845,1718989892325,-500.0,0.00024657,4]
[330087846,1718989892335,-554.06,0.00024657,4]
[330087847,1718989892344,-500.0,0.00024657,4]
[330087848,1718989892353,-500.0,0.00024657,4]
[330087849,1718989892364,-500.0,0.00024657,4]
[330087850,1718989892374,-500.0,0.00024657,4]
[330087851,1718989892383,-500.0,0.00024657,4]
[330087852,1718989892393,-768.74,0.00024657,4]
[330087853,1718989892403,-1467.03,0.00024657,4]
[330087854,1718989892412,-500.0,0.00024657,4]
[330087855,1718989892422,-1066.65,0.00024657,4]
[330087856,1718989892431,-735.92,0.00024657,4]
[330087857,1718989892442,-500.0,0.00024657,4]
[330087858,1718989892452,-500.0,0.00024657,4]
[330087859,1718989892463,-899.57,0.00024657,4]
[330087860,1718989892474,-1342.26,0.00024657,4]
[330087861,1718989892485,-500.0,0.00024657,4]
[330087862,1718989892495,-585.36,0.00024657,4]
[330087863,1718989892504,-509.69,0.00024657,4]
[330087864,1718989892514,-667.28,0.00024657,4]
[330087865,1718989892526,-500.0,0.00024657,4]
[330087866,1718989892538,-858.28,0.00024657,4]
[330087867,1718989892547,-2179.3,0.00024657,4]
[330087868,1718989892557,-906.35,0.00024657,4]
[330087869,1718989892566,-500.0,0.00024657,4]
[330087870,1718989892576,-559.84,0.00024657,4]
[330087871,1718989892587,-596.95179625,0.00024657,4]
[330087872,1718989892598,-1415.8,0.00024657,4]
[330087873,1718989892607,-1930.31,0.00024657,4]
[330087874,1718989892617,-1505.14,0.00024657,4]
[330087875,1718989892627,-859.86,0.00024657,4]
[330087876,1718989892636,-500.0,0.00024657,4]
[330087877,1718989892646,-642.24,0.00024657,4]
[330087878,1718989892657,-1397.1,0.00024657,4]
[330087879,1718989892668,-602.59,0.00024657,4]
[330087880,1718989892677,-570.91,0.00024657,4]
[330087881,1718989892687,-669.19,0.00024657,4]
[330087882,1718989892697,-500.0,0.00024657,4]
[330087883,1718989892707,-1901.91,0.00024657,4]
[330087884,1718989892716,-1273.57,0.00024657,4]
[330087885,1718989892725,-500.0,0.00024657,4]
[330087886,1718989892735,-500.0,0.00024657,4]
[330087887,1718989892743,-963.28,0.00024657,4]
[330087888,1718989892752,-532.82,0.00024657,4]
[330087889,1718989892763,-500.0,0.00024657,4]
[330087890,1718989892773,-2148.29,0.00024657,4]
[330087891,1718989892782,-904.13,0.00024657,4]
[330087892,1718989892793,-455.46,0.00024657,4]
[330087893,1718989892802,-620.66524432,0.00024657,4]
[330087894,1718989892814,-1923.19,0.00024657,4]
[330087895,1718989892825,-1655.82,0.00024657,4]
[330087896,1718989892834,-500.0,0.00024657,4]
[330087897,1718989892846,-590.93,0.00024657,4]
[330087898,1718989892856,-511.56,0.00024657,4]
[330087899,1718989892868,-1612.01,0.00024657,4]
[330087900,1718989892878,-2295.96,0.00024657,5]
[330087901,1718989892887,-2295.96,0.00024657,5]
[330087902,1718989892897,-2295.96,0.00024657,5]
[330087903,1718989892907,-2295.96,0.00024657,5]
[330087904,1718989892918,-2295.96,0.00024657,5]
[330087905,1718989892927,-2295.96,0.00024657,5]
[330087906,1718989892937,-2295.96,0.00024657,5]
[330087907,1718989892946,-2295.96,0.00024657,5]
[330087908,1718989892956,-2295.96,0.00024657,5]
[330087909,1718989892965,-2295.96,0.00024657,5]
[330087910,1718989892974,-458.26123954,0.00024657,4]
[330087911,1718989892984,-2137.42,0.00024657,4]
[330087912,1718989892993,-573.05,0.00024657,4]
[330087913,1718989893003,-3053.94,0.00024657,4]
[330087914,1718989893012,-500.0,0.00024657,4]
[330087915,1718989893022,-500.0,0.00024657,4]
[330087916,1718989893032,-639.37,0.00024657,4]
[330087917,1718989893042,-2243.82,0.00024657,4]
[330087918,1718989893052,-682.46,0.00024657,4]
[330087919,1718989893061,-1600.73,0.00024657,4]
[330087920,1718989893070,-500.0,0.00024657,4]
[330087921,1718989893080,-696.06,0.00024657,4]
[330087922,1718989893089,-500.0,0.00024657,4]
[330087923,1718989893099,-1542.7,0.00024657,4]
[330087924,1718989893114,-1105.98,0.00024657,4]
[330087925,1718989893124,-1549.93,0.00024657,4]
[330087926,1718989893133,-833.57,0.00024657,4]
[330087927,1718989893143,-2659.75,0.00024657,4]
[330087928,1718989893153,-500.0,0.00024657,4]
[330087929,1718989893162,-500.0,0.00024657,4]
[330087930,1718989893174,-1158.3,0.00024657,4]
[330087931,1718989893187,-500.0,0.00024657,4]
[330087932,1718989893197,-833.78,0.00024657,4]
[330087933,1718989893207,-533.64,0.00024657,4]
[330087934,1718989893217,-685.86,0.00024657,4]
[330087935,1718989893226,-1289.2,0.00024657,4]
[330087936,1718989893235,-1090.97,0.00024657,4]
[330087937,1718989893245,-500.0,0.00024657,4]
[330087938,1718989893254,-599.47,0.00024657,4]
[330087939,1718989893263,-2819.08,0.00024657,4]
[330087940,1718989893272,-7009.44,0.00024657,4]
[330087941,1718989893282,-591.52,0.00024657,4]
[330087942,1718989893292,-1505.93,0.00024657,4]
[330087943,1718989893303,-824.93,0.00024657,4]
[330087944,1718989893312,-500.0,0.00024657,4]
[330087945,1718989893322,-3331.02,0.00024657,4]
[330087946,1718989893334,-1405.37,0.00024657,4]
[330087947,1718989893343,-5922.66,0.00024657,4]
[330087948,1718989893353,-500.0,0.00024657,4]
[330087949,1718989893364,-905.75,0.00024657,4]
[330087950,1718989893373,-6608.91,0.00024657,4]
[330087951,1718989893383,-500.0,0.00024657,4]
[330087952,1718989893392,-580.05,0.00024657,4]
[330087953,1718989893402,-19704.08,0.00024657,4]
[330087954,1718989893413,-500.0,0.00024657,4]
[330087955,1718989893425,-540.71,0.00024657,4]
[330087956,1718989893436,-838.13,0.00024657,4]
[330087957,1718989893447,-500.0,0.00024657,4]
[330087958,1718989893457,-823.35,0.00024657,4]
[330087959,1718989893466,-535.25,0.00024657,4]
[330087960,1718989893476,-887.04,0.00024657,4]
[330087961,1718989893486,-1378.35,0.00024657,4]
[330087962,1718989893496,-500.0,0.00024657,4]
[330087963,1718989893506,-500.0,0.00024657,4]
[330087964,1718989893516,-1812.66,0.00024657,4]
[330087965,1718989893525,-1256.45,0.00024657,4]
[330087966,1718989893535,-647.36,0.00024657,4]
[330087967,1718989893545,-772.11,0.00024657,4]
[330087968,1718989893555,-525.16,0.00024657,4]
[330087969,1718989893564,-939.73,0.00024657,4]
[330087970,1718989893574,-1304.96,0.00024657,4]
[330087971,1718989893584,-506.3,0.00024657,4]
[330087972,1718989893594,-1184.79,0.00024657,4]
[330087973,1718989893604,-1482.67,0.00024657,4]
[330087974,1718989893614,-1172.14,0.00024657,4]
[330087975,1718989893624,-500.0,0.00024657,4]
[330087976,1718989893634,-500.0,0.00024657,4]
[330087977,1718989893643,-1060.14,0.00024657,4]
[330087978,1718989893654,-3886.53,0.00024657,4]
[330087979,1718989893669,-654.99,0.00024657,4]
[330087980,1718989893679,-1021.14,0.00024657,4]
[330087981,1718989893688,-500.0,0.00024657,4]
[330087982,1718989893698,-25963.77,0.00024657,4]
[330087983,1718989893708,-1656.59,0.00024657,4]
[330087984,1718989893718,-1438.15,0.00024657,4]
[330087985,1718989893729,-500.0,0.00024657,4]
[330087986,1718989893739,-1558.07,0.00024657,4]
[330087987,1718989893750,-500.0,0.00024657,4]
[330087988,1718989893759,-1774.24,0.00024657,4]
[330087989,1718989893770,-1206.43,0.00024657,4]
[330087990,1718989893781,-1123.84,0.00024657,4]
[330087991,1718989893791,-1807.53,0.00024657,4]
[330087992,1718989893801,-1718.78,0.00024657,4]
[330087993,1718989893812,-500.0,0.00024657,4]
[330087994,1718989893822,-500.0,0.00024657,4]
[330087995,1718989893832,-736.5,0.00024657,4]
[330087996,1718989893843,-500.0,0.00024657,7]
[330087997,1718989893854,-8503.74,0.00024658,4]
[330087998,1718989893864,-243.86,0.00024658,4]
[330087999,1718989893875,-4000.0,0.00024658,2]
[330088000,1718989893886,-223.896674,0.00024658,7]
[330088001,1718989893897,-223.896674,0.00024658,7]
[330088002,1718989893907,-223.896674,0.00024658,7]
[330088003,1718989893916,-223.896674,0.00024658,7]
[330088004,1718989893926,-223.896674,0.00024658,7]
[330088005,1718989893935,-223.896674,0.00024658,7]
[330088006,1718989893945,-223.896674,0.00024658,7]
[330088007,1718989893954,-223.896674,0.00024658,7]
[330088008,1718989893963,-223.896674,0.00024658,7]
[330088009,1718989893973,-223.896674,0.00024658,7]
[330088010,1718989893983,-223.896674,0.00024658,7]
[330088011,1718989893992,-223.896674,0.00024658,7]
[330088012,1718989894002,-223.896674,0.00024658,7]
[330088013,1718989894011,-223.896674,0.00024658,7]
[330088014,1718989894021,-349.218432,0.00024658,7]
[330088015,1718989894031,-349.218432,0.00024658,7]
[330088016,1718989894040,-349.218432,0.00024658,7]
[330088017,1718989894050,-349.218432,0.00024658,7]
[330088018,1718989894060,-349.218432,0.00024658,7]
[330088019,1718989894070,-349.218432,0.00024658,7]
[330088020,1718989894080,-349.218432,0.00024658,7]
[330088021,1718989894089,-349.218432,0.00024658,7]
[330088022,1718989894103,-349.218432,0.00024658,7]
[330088023,1718989894112,-349.218432,0.00024658,7]
[330088024,1718989894122,-349.218432,0.00024658,7]
[330088025,1718989894132,-349.218432,0.00024658,7]
[330088026,1718989894143,-1131.60443954,0.0002466,2]
[330088027,1718989894152,-1131.60443954,0.0002466,2]
[330088028,1718989894162,-1131.60443954,0.0002466,2]
[330088029,1718989894173,-1131.60443954,0.0002466,2]
[330088030,1718989894186,-1131.60443954,0.0002466,2]
[330088031,1718989894196,-1131.60443954,0.0002466,2]
[330088032,1718989894206,-1131.60443954,0.0002466,2]
[330088033,1718989894216,-1131.60443954,0.0002466,2]
[330088034,1718989894226,-1131.60443954,0.0002466,2]
[330088035,1718989894235,-1131.60443954,0.0002466,2]
[330088036,1718989894244,-1131.60443954,0.0002466,2]
[330088037,1718989894254,-1131.60443954,0.0002466,2]
[330088038,1718989894263,-1131.60443954,0.0002466,2]
[330088039,1718989894272,-1131.60443954,0.0002466,2]
[330088040,1718989894281,-1131.60443954,0.0002466,2]
[330088041,1718989894291,-1131.60443954,0.0002466,2]
[330088042,1718989894300,-1131.60443954,0.0002466,2]
[330088043,1718989894310,-1131.60443954,0.0002466,2]
[330088044,1718989894320,-1131.60443954,0.0002466,2]
[330088045,1718989894329,-1132.1,0.0002466,2]
[330088046,1718989894338,-4526.49275817,0.0002466,2]
[330088047,1718989894347,-4526.49275817,0.0002466,2]
[330088048,1718989894356,-4526.49275817,0.0002466,2]
[330088049,1718989894365,-4526.49275817,0.0002466,2]
[330088050,1718989894374,-4526.49275817,0.0002466,2]
[330088051,1718989894383,-4526.49275817,0.0002466,2]
[330088052,1718989894392,-4526.49275817,0.0002466,2]
[330088053,1718989894401,-4526.49275817,0.0002466,2]
[330088054,1718989894410,-4526.49275817,0.0002466,2]
[330088055,1718989894420,-4526.49275817,0.0002466,2]
[330088056,1718989894429,-4526.49275817,0.0002466,2]
[330088057,1718989894522,-4526.49275817,0.0002466,2]
[330088058,1718989894532,-4526.49275817,0.0002466,2]
[330088059,1718989894541,-4526.49275817,0.0002466,2]
[330088060,1718989894550,-4526.49275817,0.0002466,2]
[330088061,1718989894559,-4526.49275817,0.0002466,2]
[330088062,1718989894569,-4526.49275817,0.0002466,2]
[330088063,1718989894578,-4526.49275817,0.0002466,2]
[330088064,1718989894588,-4526.49275817,0.0002466,2]
[330088065,1718989894597,-4526.99,0.0002466,2]
[330088066,1718989894606,-182.78501792,0.0002466,2]
[330088067,1718989894615,-182.78501792,0.0002466,2]
[330088068,1718989894625,-182.78501792,0.0002466,2]
[330088069,1718989894634,-182.78501792,0.0002466,2]
[330088070,1718989894643,-182.78501792,0.0002466,2]
[330088071,1718989894652,-182.78501792,0.0002466,2]
[330088072,1718989894661,-182.78501792,0.0002466,2]
[330088073,1718989894673,-182.78501792,0.0002466,2]
[330088074,1718989894682,-182.78501792,0.0002466,2]
[330088075,1718989894691,-182.78501792,0.0002466,2]
[330088076,1718989894701,-182.78501792,0.0002466,2]
[330088077,1718989894711,-182.78501792,0.0002466,2]
[330088078,1718989894721,-182.78501792,0.0002466,2]
[330088079,1718989894731,-182.78501792,0.0002466,2]
[330088080,1718989894740,-182.78501792,0.0002466,2]
[330088081,1718989894750,-182.78501792,0.0002466,2]
[330088082,1718989894760,-182.78501792,0.0002466,2]
[330088083,1718989894769,-182.78501792,0.0002466,2]
[330088084,1718989894778,-182.78501792,0.0002466,2]
[330088085,1718989894787,-183.28,0.0002466,2]
[330088086,1718989894797,-731.21507168,0.0002466,2]
[330088087,1718989894807,-731.21507168,0.0002466,2]
[330088088,1718989894817,-731.21507168,0.0002466,2]
[330088089,1718989894826,-731.21507168,0.0002466,2]
[330088090,1718989894835,-731.21507168,0.0002466,2]
[330088091,1718989894844,-731.21507168,0.0002466,2]
[330088092,1718989894854,-731.21507168,0.0002466,2]
[330088093,1718989894863,-731.21507168,0.0002466,2]
[330088094,1718989894873,-731.21507168,0.0002466,2]
[330088095,1718989894883,-731.21507168,0.0002466,2]
[330088096,1718989894892,-731.21507168,0.0002466,2]
[330088097,1718989894903,-731.21507168,0.0002466,2]
[330088098,1718989894912,-731.21507168,0.0002466,2]
[330088099,1718989894925,-731.21507168,0.0002466,2]
[330088100,1718989894934,-731.21507168,0.0002466,2]
[330088101,1718989894943,-731.21507168,0.0002466,2]
[330088102,1718989894952,-731.21507168,0.0002466,2]
[330088103,1718989894962,-731.21507168,0.0002466,2]
[330088104,1718989894971,-731.21507168,0.0002466,2]
[330088105,1718989894979,-731.71,0.0002466,2]
[330088106,1718989894988,-1215.99579326,0.0002466,2]
[330088107,1718989894997,-1215.99579326,0.0002466,2]
[330088108,1718989895006,-1215.99579326,0.0002466,2]
[330088109,1718989895016,-1215.99579326,0.0002466,2]
[330088110,1718989895024,-1215.99579326,0.0002466,2]
[330088111,1718989895034,-1215.99579326,0.0002466,2]
[330088112,1718989895043,-1215.99579326,0.0002466,2]
[330088113,1718989895052,-1215.99579326,0.0002466,2]
[330088114,1718989895061,-1215.99579326,0.0002466,2]
[330088115,1718989895070,-1215.99579326,0.0002466,2]
[330088116,1718989895079,-1215.99579326,0.0002466,2]
[330088117,1718989895088,-1215.99579326,0.0002466,2]
[330088118,1718989895102,-1215.99579326,0.0002466,2]
[330088119,1718989895111,-1215.99579326,0.0002466,2]
[330088120,1718989895121,-1215.99579326,0.0002466,2]
[330088121,1718989895130,-1215.99579326,0.0002466,2]
[330088122,1718989895141,-1215.99579326,0.0002466,2]
[330088123,1718989895151,-1215.99579326,0.0002466,2]
[330088124,1718989895160,-1215.99579326,0.0002466,2]
[330088125,1718989895170,-1216.49,0.0002466,2]
[330088126,1718989895181,-4864.05817303,0.0002466,2]
[330088127,1718989895190,-4864.05817303,0.0002466,2]
[330088128,1718989895199,-4864.05817303,0.0002466,2]
[330088129,1718989895208,-4864.05817303,0.0002466,2]
[330088130,1718989895217,-4864.05817303,0.0002466,2]
[330088131,1718989895227,-4864.05817303,0.0002466,2]
[330088132,1718989895236,-4864.05817303,0.0002466,2]
[330088133,1718989895245,-4864.05817303,0.0002466,2]
[330088134,1718989895255,-4864.05817303,0.0002466,2]
[330088135,1718989895264,-4864.05817303,0.0002466,2]
[330088136,1718989895274,-4864.05817303,0.0002466,2]
[330088137,1718989895283,-4864.05817303,0.0002466,2]
[330088138,1718989895292,-4864.05817303,0.0002466,2]
[330088139,1718989895301,-4864.05817303,0.0002466,2]
[330088140,1718989895310,-4864.05817303,0.0002466,2]
[330088141,1718989895319,-4864.05817303,0.0002466,2]
[330088142,1718989895329,-4864.05817303,0.0002466,2]
[330088143,1718989895339,-4864.05817303,0.0002466,2]
[330088144,1718989895348,-4864.05817303,0.0002466,2]
[330088145,1718989895358,-4864.55,0.0002466,2]
[330088146,1718989895367,-151.0,0.0002466,7]
[330088147,1718989895377,-223.896674,0.0002466,7]
[330088148,1718989895386,-223.896674,0.0002466,7]
[330088149,1718989895395,-151.0,0.0002466,7]
[330088150,1718989895405,-349.218432,0.0002466,7]
[330088151,1718989895415,-349.218432,0.0002466,7]
[330088152,1718989895426,-5000.0,0.00024666,2]
[330088153,1718989895435,-4089.57,0.000247,2]
[330088154,1718989895444,-278.00777838,0.000247,2]
[330088155,1718989895453,-5000.0,0.00024742,2]
[330088156,1718989895462,-5000.0,0.00024746,2]
[330088157,1718989895471,-25000.0,0.00024752,2]
[330088158,1718989895480,-14591.62,0.000248,2]
[330088159,1718989895490,-3920.37,0.000248,2]
[330088160,1718989895499,-6421.9,0.0002482,7]
[330088161,1718989895508,-6421.9,0.0002482,7]
[330088162,1718989895517,-441.09135074,0.000249,2]
[330088163,1718989895526,-2500.0,0.000249,2]
[330088164,1718989895535,-155.44266239,0.000249,2]
[330088165,1718989895545,-1356.86,0.00024907,4]
[330088166,1718989895554,-3062.37,0.00024907,4]
[330088167,1718989895563,-1533.09,0.00024907,4]
[330088168,1718989895573,-5990.91,0.00024907,4]
[330088169,1718989895582,-1110.17,0.00024907,4]
[330088170,1718989895592,-11925.19,0.00024907,4]
[330088171,1718989895601,-3672.46,0.00024907,4]
[330088172,1718989895611,-6178.73,0.00024907,4]
[330088173,1718989895622,-1501.96,0.00024907,4]
[330088174,1718989895631,-3518.52,0.00024907,4]
[330088175,1718989895640,-16602.73,0.00024907,4]
[330088176,1718989895650,-1989.12,0.00024919,4]
[330088177,1718989895659,-2398.6,0.00024919,4]
[330088178,1718989895671,-42723.34,0.00024919,4]
[330088179,1718989895681,-1860.96,0.00024919,4]
[330088180,1718989895691,-7757.24,0.00024919,4]
[330088181,1718989895700,-2969.44,0.00024919,4]
[330088182,1718989895710,-500.0,0.00024919,2]
[330088183,1718989895719,-2619.5,0.00024919,4]
[330088184,1718989895728,-4343.94,0.00024919,4]
[330088185,1718989895739,-946.76,0.00024919,4]
[330088186,1718989895749,-1067.33,0.00024919,4]
[330088187,1718989895759,-11069.13,0.00024919,4]
[330088188,1718989895771,-2041.56,0.00024919,4]
[330088189,1718989895782,-2855.93,0.00024919,4]
[330088190,1718989895793,-1902.36,0.00024919,4]
[330088191,1718989895804,-871.25,0.0002492,4]
[330088192,1718989895816,-2040.63,0.0002492,4]
[330088193,1718989895825,-1063.28,0.0002492,4]
[330088194,1718989895836,-2566.45,0.0002492,4]
[330088195,1718989895845,-1747.85,0.0002492,4]
[330088196,1718989895854,-574.66,0.0002492,4]
[330088197,1718989895863,-1705.93,0.0002492,4]
[330088198,1718989895873,-500.0,0.0002492,4]
[330088199,1718989895883,-500.0,0.0002492,4]
[330088200,1718989895893,-790.72,0.0002492,4]
[330088201,1718989895903,-614.11,0.0002492,4]
[330088202,1718989895912,-1508.15,0.0002492,4]
[330088203,1718989895923,-500.0,0.0002492,4]
[330088204,1718989895932,-655.33,0.0002492,4]
[330088205,1718989895942,-900.76,0.0002492,4]
[330088206,1718989895951,-1711.8,0.0002492,4]
[330088207,1718989895961,-500.0,0.0002492,4]
[330088208,1718989895972,-500.0,0.0002492,4]
[330088209,1718989895982,-1259.32,0.0002492,4]
[330088210,1718989895992,-543.58,0.0002492,4]
[330088211,1718989896002,-1395.51,0.0002492,4]
[330088212,1718989896012,-500.0,0.0002492,4]
[330088213,1718989896022,-779.08,0.0002492,4]
[330088214,1718989896031,-882.56,0.0002492,4]
[330088215,1718989896041,-1115.61,0.0002492,4]
[330088216,1718989896050,-500.0,0.0002492,4]
[330088217,1718989896060,-166.98699434,0.0002492,4]
[330088218,1718989896070,-500.0,0.0002492,4]
[330088219,1718989896080,-500.0,0.0002492,4]
[330088220,1718989896089,-500.0,0.0002492,4]
[330088221,1718989896099,-1759.77,0.0002492,4]
[330088222,1718989896113,-500.0,0.0002492,4]
[330088223,1718989896123,-500.0,0.0002492,4]
[330088224,1718989896132,-500.0,0.0002492,4]
[330088225,1718989896144,-562.58,0.0002492,4]
[330088226,1718989896154,-500.0,0.0002492,4]
[330088227,1718989896164,-1118.22,0.0002492,4]
[330088228,1718989896175,-500.0,0.0002492,4]
[330088229,1718989896184,-1073.61,0.0002492,4]
[330088230,1718989896196,-500.0,0.0002492,4]
[330088231,1718989896206,-1028.37,0.0002492,4]
[330088232,1718989896216,-565.65,0.0002492,4]
[330088233,1718989896225,-1694.42,0.0002492,4]
[330088234,1718989896235,-423.78560808,0.0002492,4]
[330088235,1718989896245,-538.43,0.0002492,4]
[330088236,1718989896254,-1124.0,0.0002492,4]
[330088237,1718989896264,-1310.65,0.0002492,4]
[330088238,1718989896273,-500.0,0.0002492,4]
[330088239,1718989896282,-307.04,0.0002492,4]
[330088240,1718989896291,-1974.58,0.0002492,4]
[330088241,1718989896301,-1560.47,0.0002492,4]
[330088242,1718989896310,-1456.87,0.0002492,4]
[330088243,1718989896319,-500.0,0.0002492,4]
[330088244,1718989896328,-500.0,0.0002492,4]
[330088245,1718989896338,-1350.6,0.0002492,4]
[330088246,1718989896347,-766.53,0.0002492,4]
[330088247,1718989896358,-500.0,0.0002492,4]
[330088248,1718989896367,-209.58,0.0002492,4]
[330088249,1718989896377,-1549.35,0.0002492,4]
[330088250,1718989896386,-1457.49,0.0002492,4]
[330088251,1718989896395,-500.0,0.0002492,4]
[330088252,1718989896404,-1276.6,0.0002492,4]
[330088253,1718989896413,-607.75,0.0002492,4]
[330088254,1718989896427,-661.51,0.0002492,4]
[330088255,1718989896438,-616.1,0.0002492,4]
[330088256,1718989896448,-759.07,0.0002492,4]
[330088257,1718989896457,-1007.76,0.0002492,4]
[330088258,1718989896467,-558.75,0.0002492,4]
[330088259,1718989896476,-520.63,0.0002492,4]
[330088260,1718989896487,-500.0,0.0002492,4]
[330088261,1718989896496,-500.0,0.0002492,4]
[330088262,1718989896506,-500.0,0.0002492,4]
[330088263,1718989896515,-750.4,0.0002492,4]
[330088264,1718989896525,-500.0,0.0002492,4]
[330088265,1718989896535,-603.3214971,0.0002492,4]
[330088266,1718989896545,-500.0,0.0002492,4]
[330088267,1718989896554,-500.0,0.0002492,4]
[330088268,1718989896563,-674.53,0.0002492,4]
[330088269,1718989896572,-919.98,0.0002492,4]
[330088270,1718989896582,-1723.58,0.0002492,4]
[330088271,1718989896591,-554.70106162,0.0002492,4]
[330088272,1718989896600,-500.0,0.0002492,4]
[330088273,1718989896610,-572.44,0.0002492,4]
[330088274,1718989896619,-500.0,0.0002492,4]
[330088275,1718989896628,-966.63,0.0002492,4]
[330088276,1718989896638,-500.0,0.0002492,4]
[330088277,1718989896647,-574.64,0.0002492,4]
[330088278,1718989896656,-500.0,0.0002492,4]
[330088279,1718989896665,-551.74,0.0002492,4]
[330088280,1718989896682,-500.0,0.0002492,4]